[Event "1st Bangalore GM-Open-A 2024"]
[Site "Bangalore"]
[Date "2024.01.25"]
[Round "9.31"]
[White "Ajay Santhosh Parvathareddy"]
[Black "Savchenko, Boris"]
[Result "0-1"]
[ECO "B13"]
[WhiteElo "2204"]
[BlackElo "2489"]
[Annotator "TA"]
[PlyCount "106"]
[EventDate "2024.01.20"]
[EventType "swiss"]
[EventCountry "IND"]
[SourceTitle "playchess.com"]
[Source "ChessBase"]
[SourceQuality "1"]
[TimeControl "5400+30"]

{[%evp 9,106,9,3,-8,23,0,28,24,34,-38,-25,-33,-38,-35,0,0,0,-88,-88,-89,-81,-77,-75,-82,-88,-80,-83,-99,-103,-96,-97,-100,-92,-241,-222,-222,-234,-238,-237,-236,-235,-241,-240,-245,-241,-255,-229,-242,-225,-245,-238,-244,-241,-248,-248,-248,-248,-246,-247,-305,-268,-382,-375,-530,-550,-444,-224,-599,-597,-705,-661,-1283,-1177,-1320,-1318,-987,-326,-250,-137,-1800,-1706,-6079,-6052,-4517,-2824,-29980,-29981,-29981,-8,-29982,-29983,-29980,-29981,-29988,-29989,-29989,-29990,-29992,-29992]} 1. d4 {[%emt 0:00:01]} d5 {[%emt 0:00:36]} 2. Nf3 {[%emt 0:00:07]} c5 {[%emt 0:01:11]} 3. e3 {[%emt 0:00:09]} cxd4 {[%emt 0:00:09]} 4. exd4 {[%emt 0:00:04]} Nc6 {[%emt 0:00:10]} 5. c4 {[%emt 0:08:32]} Nf6 {[%emt 0:00:48]} 6. Bg5 {[%emt 0:02:45]} e6 {[%emt 0:12:21]} 7. cxd5 {[%emt 0:00:12]} Qxd5 {[%emt 0:02:11]} 8. Nc3 {[%emt 0:00:23] White has an edge.} Bb4 {[%emt 0:02:12]} 9. a3 {[%emt 0:12:17]} (9. Bxf6 $14 gxf6 10. Bd3) 9... Bxc3+ $15 {[%emt 0:03:13]} 10. bxc3 {[%emt 0:01:13]} Ne4 {[%emt 0:03:31][%csl LRc3,LRg5]} 11. Bd2 {[%emt 0:03:25]} O-O {[%emt 0:05:19]} 12. c4 {[%emt 0:09:58]} Qf5 {[%emt 0:01:21][%cal Oc6d4] White must now prevent ...Nxd4!} 13. Be3 {[%emt 0:06:20]} (13. Bd3 $11 Nxd4 14. Bb4) 13... Qa5+ $17 {[%emt 0:00:43] Black keeps a firm grip on the game.} 14. Bd2 {[%emt 0:05:15]} Nxd2 {[%emt 0:01:01]} 15. Qxd2 {[%emt 0:00:04]} Rd8 {[%emt 0:02:03]} 16. Qxa5 {[%emt 0:00:15]} Nxa5 {[%emt 0:00:07]} 17. Be2 {[%emt 0:02:53]} b6 {[%emt 0:00:38]} 18. Rb1 {[%emt 0:00:35]} Bb7 {[%emt 0:22:10]} 19. O-O {[%emt 0:09:37]} Rac8 {[%emt 0:05:50][%cal Ob7f3] ...Bxf3! would now be deadly.} 20. c5 {[%emt 0:03:41]} bxc5 {[%emt 0:00:11]} 21. Rb5 {[%emt 0:00:14] [#]} (21. dxc5 $17 {was the only defense.} Rxc5 22. Rfc1 Rxc1+ 23. Rxc1) 21... Ba6 $1 $19 {[%emt 0:00:21]} (21... Bxf3 22. Bxf3 Nc4 23. Rxc5 $15) 22. Rxa5 {[%emt 0:00:05]} Bxe2 {[%emt 0:00:08]} 23. Re1 {[%emt 0:00:14]} Bxf3 {[%emt 0:05:27]} 24. gxf3 {[%emt 0:00:04]} cxd4 {[%emt 0:00:41]} 25. Rxa7 {[%emt 0:00:08][%mdl 4096] Endgame. KRR-KRR} Rc3 {[%emt 0:00:28]} 26. Rd1 {[%emt 0:00:10][%cal Od1d4]} g6 {[%emt 0:02:06]} (26... Rxf3 27. Rxd4 Rc8 28. Rc4 $17) 27. Kg2 {[%emt 0:00:16]} Rd5 {[%emt 0:04:52]} 28. f4 {[%emt 0:02:58]} d3 {[%emt 0:01:21]} 29. Rd2 {[%emt 0:00:40]} Rd4 {[%emt 0:07:29]} 30. Kg3 {[%emt 0:01:46]} Kg7 {[%emt 0:03:14]} 31. a4 {[%emt 0:01:23]} h5 {[%emt 0:03:52]} 32. a5 {[%emt 0:01:22]} Ra3 {[%emt 0:02:56]} 33. a6 {[%emt 0:00:31]} Kf6 {[%emt 0:02:55]} 34. f3 {[%emt 0:00:08]} h4+ {[%emt 0:02:32]} 35. Kxh4 {[%emt 0:00:08]} (35. Kf2 $142) 35... g5+ {[%emt 0:00:15]} (35... Rxf4+ 36. Kg3 Rd4 37. Kf2 $19) 36. Kg3 {[%emt 0:02:59]} (36. Kg4 {was necessary.}) 36... gxf4+ {[%emt 0:00:06]} ({Less strong is} 36... Rxf4 37. Rd7 $17) 37. Kg2 {[%emt 0:00:29]} Rd6 {[%emt 0:00:29]} (37... Rd8 $142 {Threatens to win with ...Rg8+.} 38. h4 Ra1) 38. Kh3 $2 {[%emt 0:07:05]} (38. Rb7) 38... e5 {[%emt 0:00:25]} (38... Raxa6 39. Rxa6 Rxa6 40. Rxd3 $15) 39. Ra8 {[%emt 0:01:35]} Rdxa6 {[%emt 0:01:09]} 40. Rxa6+ {[%emt 0:00:10]} Rxa6 {[%emt 0:00:04]} 41. Rxd3 {[%emt 0:00:04] KR-KR} Ra2 {[%emt 0:00:17]} 42. Rb3 {[%emt 0:02:40]} Rf2 $2 {[%emt 0:00:31]} (42... Kf5 43. Rc3 Rf2) 43. Kg4 {[%emt 0:02:06] [#]} Kg6 {[%emt 0:00:10]} ({And not} 43... Rxh2 44. Rb6+ Kg7 45. Kf5 $11) (43... Rg2+ $1 $19 44. Kh3 Rg8) 44. Kh3 $2 {[%emt 0:00:45][%mdl 8192]} (44. Rb6+ $17 f6 45. Rd6) 44... Kg5 {[%emt 0:00:10] And now ...f5 would win.} 45. Ra3 {[%emt 0:01:36]} f5 {[%emt 0:00:09]} 46. Rb3 {[%emt 0:00:22]} e4 {[%emt 0:00:10]} 47. Ra3 {[%emt 0:00:03]} e3 {[%emt 0:00:11]} ({Stronger than} 47... Rxf3+ 48. Rxf3 exf3 $11) 48. Ra2 {[%emt 0:00:03]} Rxf3+ {[%emt 0:00:22]} 49. Kg2 {[%emt 0:00:05]} Kg4 {[%emt 0:00:06] Black mates.} 50. Kg1 {[%emt 0:02:27]} Rh3 {[%emt 0:00:06]} 51. Ra8 {[%emt 0:00:35]} f3 {[%emt 0:00:11]} 52. Re8 {[%emt 0:00:27]} Kf4 {[%emt 0:00:09]} 53. Kh1 {[%emt 0:00:12]} Rh7 {[%emt 0:00:10] Weighted Error Value: White=0.74/Black=0.18 (very precise) .  Loses game:     	White=1     	---        Mistake:       	White=6     	Black=1      Inaccurate:     	White=2     	Black=3      OK:         	White=11    	Black=21     Best:        	White=1     	Black=5      Strong:       	---       	Black=1} 0-1

[Event "1st Bangalore GM-Open-A 2024"]
[Site "Bangalore"]
[Date "2024.01.25"]
[Round "9.32"]
[White "Sharma Isha"]
[Black "Sammed Jaykumar, Shete"]
[Result "1-0"]
[ECO "B92"]
[WhiteElo "2183"]
[BlackElo "2441"]
[Annotator "RC"]
[PlyCount "87"]
[EventDate "2024.01.20"]
[EventType "swiss"]
[EventCountry "IND"]
[SourceTitle "playchess.com"]
[Source "ChessBase"]
[SourceQuality "1"]
[TimeControl "5400+30"]

1. e4 {[%emt 0:00:07]} c5 {[%emt 0:00:10]} 2. Nf3 {[%emt 0:00:05]} d6 {[%emt 0:00:13]} 3. d4 {[%emt 0:00:06]} cxd4 {[%emt 0:00:05]} 4. Nxd4 {[%emt 0:00:03]} Nf6 {[%emt 0:00:07]} 5. Nc3 {[%emt 0:00:03]} a6 {[%emt 0:00:22]} 6. Be2 {[%emt 0:00:06]} e5 {[%emt 0:00:06]} 7. Nb3 {[%emt 0:00:03]} Be7 {[%emt 0:00:24]} 8. Be3 {[%emt 0:00:07]} Be6 {[%emt 0:00:16]} 9. Nd5 {[%emt 0:00:12]} Nbd7 {[%emt 0:01:03]} 10. Qd3 {[%emt 0:00:20]} O-O {[%emt 0:00:45]} 11. O-O {[%emt 0:01:17]} Bxd5 {[%emt 0:04:29]} 12. exd5 {[%emt 0:00:08]} Ne8 {[%emt 0:00:33]} 13. a4 {[%emt 0:05:04]} Bg5 {[%emt 0:01:08]} 14. a5 {[%emt 0:02:09]} Rc8 {[%emt 0:04:06]} 15. c4 {[%emt 0:01:06]} g6 {[%emt 0:01:17]} 16. f4 {[%emt 0:05:10]} exf4 {[%emt 0:05:15]} 17. Bxf4 {[%emt 0:00:20]} Bxf4 {[%emt 0:07:05]} 18. Rxf4 {[%emt 0:00:07]} Nc5 {[%emt 0:06:17]} 19. Qc3 {[%emt 0:04:25]} Qe7 {[%emt 0:06:32]} 20. Nd4 {[%emt 0:06:24]} Nf6 {[%emt 0:03:08]} 21. b4 {[%emt 0:05:04]} Qe5 {[%emt 0:05:36]} 22. Raf1 {[%emt 0:06:22]} Ncd7 {[%emt 0:03:54]} 23. Qd2 {[%emt 0:17:57]} Rce8 {[%emt 0:01:10]} 24. g3 {[%emt 0:02:33]} Ne4 {[%emt 0:01:33]} 25. Qd3 {[%emt 0:02:02]} Ng5 {[%emt 0:04:47]} 26. Kg2 {[%emt 0:01:23]} h5 {[%emt 0:01:02]} 27. h4 {[%emt 0:09:14]} Nh7 {[%emt 0:00:27]} 28. Bd1 {[%emt 0:00:07]} Qe3 {[%emt 0:01:51]} 29. R4f3 {[%emt 0:07:33]} Qe7 {[%emt 0:00:44]} 30. Rf4 {[%emt 0:01:42]} Ne5 {[%emt 0:03:48]} 31. Qc3 {[%emt 0:00:23]} Rc8 {[%emt 0:01:21]} 32. Be2 {[%emt 0:00:04]} Rc7 {[%emt 0:01:56]} 33. Nb3 {[%emt 0:08:28]} g5 {[%emt 0:09:25]} 34. hxg5 {[%emt 0:01:25]} Ng6 {[%emt 0:00:05]} 35. Nd4 {[%emt 0:10:37]} Nxf4+ {[%emt 0:04:10]} 36. gxf4 {[%emt 0:00:05]} Qe4+ {[%emt 0:00:07]} 37. Rf3 {[%emt 0:00:05]} Re8 {[%emt 0:00:28]} 38. Bd3 {[%emt 0:01:09]} Qe1 {[%emt 0:00:19]} 39. Qb2 {[%emt 0:00:50]} Rce7 {[%emt 0:01:52]} 40. Rf2 {[%emt 0:03:55]} f6 {[%emt 0:05:35]} 41. Nf5 {[%emt 0:00:05]} Rd7 {[%emt 0:00:04]} 42. Rf1 {[%emt 0:00:17]} Rde7 {[%emt 0:02:09]} 43. Rxe1 {[%emt 0:00:41]} Rxe1 {[%emt 0:00:04]} 44. g6 {[%emt 0:00:36]} 1-0

[Event "1st Bangalore GM-Open-A 2024"]
[Site "Bangalore"]
[Date "2024.01.25"]
[Round "9.33"]
[White "De Silva, L M S T"]
[Black "Pujari, Rucha"]
[Result "1-0"]
[ECO "C55"]
[WhiteElo "2398"]
[BlackElo "2181"]
[Annotator "TA"]
[PlyCount "77"]
[EventDate "2024.01.20"]
[EventType "swiss"]
[EventCountry "IND"]
[SourceTitle "playchess.com"]
[Source "ChessBase"]
[SourceQuality "1"]
[TimeControl "5400+30"]

{[%evp 10,76,41,37,49,10,16,22,8,12,28,25,27,18,33,32,17,15,51,28,89,81,113,125,90,109,106,56,104,97,160,168,430,408,419,416,399,408,393,396,402,422,412,370,964,958,782,1231,1317,1212,1311,1242,2385,2224,1716,2858,2836,2858,2083,1425,5218,1431,1435,1386,1229,1116,29998,29999,29999]} 1. e4 {[%emt 0:00:26]} e5 {[%emt 0:00:09]} 2. Nf3 {[%emt 0:00:21]} Nc6 {[%emt 0:00:03]} 3. Bc4 {[%emt 0:00:10]} Nf6 {[%emt 0:00:15]} 4. d3 {[%emt 0:00:12]} Be7 {[%emt 0:00:26]} 5. O-O {[%emt 0:00:29]} d6 {[%emt 0:01:09]} 6. a4 {[%emt 0:00:23]} O-O {[%emt 0:01:44]} 7. Nc3 {[%emt 0:00:09][%cal Bb1c3,Bc3e2,Be2g3][%mdl 32]} Bg4 {[%emt 0:09:45][%cal Bc8g4,Bg4h5,Bh5g6][%mdl 32]} 8. h3 {[%emt 0:00:25]} Bh5 {[%emt 0:02:11] The position is equal.} 9. Be3 {[%emt 0:02:27]} Nb4 {[%emt 0:02:50]} 10. g4 {[%emt 0:08:05]} Bg6 {[%emt 0:22:34]} 11. Bb3 {[%emt 0:06:15]} c6 {[%emt 0:04:40]} 12. Ne2 $36 {[%emt 0:02:52][%mdl 2048] Black is under pressure.} Qc7 {[%emt 0:02:24]} 13. Ng3 {[%emt 0:02:16]} d5 {[%emt 0:04:25][%cal Rd5e4]} 14. Nh4 $1 {[%emt 0:01:56]} dxe4 {[%emt 0:01:59]} (14... Rad8 $11) 15. dxe4 $16 {[%emt 0:05:15]} Nd7 {[%emt 0:08:03]} (15... Bxe4 $2 16. g5 Bxc2 17. Bxc2 $18) 16. Nxg6 {[%emt 0:08:31]} hxg6 {[%emt 0:00:07]} 17. c3 {[%emt 0:05:31] Wards off c5} Na6 {[%emt 0:00:24]} 18. g5 {[%emt 0:04:20] White is more active.} ({White should try} 18. Ba2 $16) 18... Nac5 {[%emt 0:02:37]} (18... Bc5 $14 {deserves consideration.}) 19. Ba2 {[%emt 0:01:31]} Rad8 {[%emt 0:04:35]} (19... Rfd8 $142) 20. h4 {[%emt 0:01:57] Qg4 would now be deadly.} Qc8 $2 {[%emt 0:09:10]} (20... Ne6 {was necessary.} 21. Bxe6 (21. Bxa7 $2 b6 $19) 21... Nc5 22. Bxf7+ Rxf7) 21. Qe2 {[%emt 0:12:37] h5 is the strong threat.} Rfe8 {[%emt 0:09:58]} 22. b4 {[%emt 0:02:55]} Ne6 {[%emt 0:00:19]} 23. Bxe6 $1 {[%emt 0:02:43]} (23. Bxa7 Nf4 24. Qg4 c5 $16) 23... fxe6 {[%emt 0:00:10]} 24. h5 {[%emt 0:00:02]} (24. Bxa7 c5 25. Qb5 Nb8 $14) 24... Nf8 {[%emt 0:08:41]} 25. hxg6 {[%emt 0:00:10]} (25. Bxa7 c5 26. Kg2 (26. Bb6 Rd7 $16) 26... cxb4 $16) 25... Nxg6 {[%emt 0:00:16]} 26. Qh5 {[%emt 0:00:34]} ({Weaker is} 26. Bxa7 Nf4 27. Qg4 Bxg5 $14) 26... Nf4 {[%emt 0:00:24] [#]} (26... Kf7 27. f4 (27. Bxa7 Rh8 $17) 27... Rh8 28. fxe5+ Bf6) 27. Bxf4 $1 $18 {[%emt 0:01:29]} exf4 {[%emt 0:00:03] [#]} 28. g6 $1 {[%emt 0:00:06] Qh7+ would kill now.} Bf6 {[%emt 0:00:41]} 29. e5 {[%emt 0:00:32]} Bxe5 {[%emt 0:01:54]} 30. Qxe5 {[%emt 0:00:08]} fxg3 {[%emt 0:00:08]} 31. Qh5 {[%emt 0:00:14]} ({Inferior is} 31. Qxg3 e5 $11) 31... Rd5 {[%emt 0:01:55]} 32. Qh7+ {[%emt 0:00:10]} Kf8 {[%emt 0:00:02][%cal Bg8f8,Bf8e7,Be7d6,Bd6c7,Bc7d7][%mdl 32]} 33. fxg3+ {[%emt 0:01:00]} Ke7 {[%emt 0:00:02]} 34. c4 {[%emt 0:03:11] Intending Rf7+ and mate.} Rd7 {[%emt 0:02:49]} 35. Qh4+ {[%emt 0:01:39]} (35. Qxg7+ $142 Kd8 36. Qf6+ Kc7 37. Qe5+ Kd8 38. g7) 35... Kd6 {[%emt 0:00:12]} 36. Rad1+ {[%emt 0:00:08]} Kc7 {[%emt 0:00:18]} 37. Rxd7+ {[%emt 0:00:09]} Kxd7 {[%emt 0:00:22]} 38. Rf7+ {[%emt 0:00:05]} Kd6 {[%emt 0:00:11]} 39. Qd4# {[%emt 0:00:04] Weighted Error Value: White=0.07 (flawless) /Black=0.52.  Mistake:       	White=1     	Black=5      Inaccurate:     	White=1     	Black=1      OK:         	White=10    	Black=6      Best:        	White=2     	Black=2      Strong:       	White=3     	---} 1-0